[Event "*** Titled Tuesday Blitz"]
[Site "Chess.com"]
[Date "2020.05.26"]
[Round "6"]
[White "Vesper2018"]
[Black "LiverpooL174"]
[Result "0-1"]
[WhiteElo "2319"]
[BlackElo "2673"]
[TimeControl "180+1"]
[EndTime "11:04:21 PDT"]
[Termination "LiverpooL174 won by resignation"]

1. e4 {[%clk 0:03:00.6]} 1... c6 {[%clk 0:02:58.8]} 2. d4 {[%clk 0:03:00.1]}
2... d5 {[%clk 0:02:59.7]} 3. e5 {[%clk 0:03:00.7]} 3... Bf5 {[%clk 0:02:59.9]}
4. Nf3 {[%clk 0:03:00.9]} 4... e6 {[%clk 0:03:00.1]} 5. Be2 {[%clk 0:03:01.3]}
5... Ne7 {[%clk 0:02:59.4]} 6. O-O {[%clk 0:03:01.3]} 6... Nd7 {[%clk
0:02:59.8]} 7. Nbd2 {[%clk 0:02:59.6]} 7... Bg6 {[%clk 0:03:00.1]} 8. Nh4 {[%clk
0:02:58.7]} 8... Nf5 {[%clk 0:02:59.6]} 9. Nxg6 {[%clk 0:02:57.2]} 9... hxg6
{[%clk 0:03:00.5]} 10. Nf3 {[%clk 0:02:57.6]} 10... Be7 {[%clk 0:02:59.8]} 11.
c3 {[%clk 0:02:51.7]} 11... c5 {[%clk 0:03:00.2]} 12. g3 {[%clk 0:02:38.9]}
12... g5 {[%clk 0:02:55.3]} 13. dxc5 {[%clk 0:02:35.2]} 13... g4 {[%clk
0:02:54.1]} 14. Nd4 {[%clk 0:02:32.7]} 14... Nxe5 {[%clk 0:02:54.6]} 15. Bxg4
{[%clk 0:02:26.6]} 15... Nh6 {[%clk 0:02:46.9]} 16. Bxe6 {[%clk 0:02:15.7]}
16... fxe6 {[%clk 0:02:45.7]} 17. Re1 {[%clk 0:02:14.3]} 17... Nhf7 {[%clk
0:02:42.6]} 18. Nxe6 {[%clk 0:02:08.9]} 18... Qd7 {[%clk 0:02:42.7]} 19. Qxd5
{[%clk 0:01:49.7]} 19... Qxd5 {[%clk 0:02:35]} 20. Nc7+ {[%clk 0:01:49.9]} 20...
Kd7 {[%clk 0:02:35.7]} 21. Nxd5 {[%clk 0:01:50.6]} 21... Nf3+ {[%clk 0:02:36.4]}
22. Kf1 {[%clk 0:01:47.9]} 22... Nxe1 {[%clk 0:02:37.1]} 23. Kxe1 {[%clk
0:01:47.4]} 23... Bxc5 {[%clk 0:02:37.4]} 24. h4 {[%clk 0:01:45.3]} 24... Rhe8+
{[%clk 0:02:37]} 25. Kf1 {[%clk 0:01:44.6]} 25... Ne5 {[%clk 0:02:36.8]} 26. Bf4
{[%clk 0:01:43]} 26... Nd3 {[%clk 0:02:35.2]} 27. Rd1 {[%clk 0:01:42.2]} 27...
Nxf4 {[%clk 0:02:34.8]} 28. Nf6+ {[%clk 0:01:31.9]} 28... Kc6 {[%clk 0:02:30.8]}
29. Nxe8 {[%clk 0:01:31.3]} 29... Rxe8 {[%clk 0:02:31.7]} 30. gxf4 {[%clk
0:01:31.4]} 30... Rf8 {[%clk 0:02:32.3]} 31. b4 {[%clk 0:01:22.4]} 31... Bb6
{[%clk 0:02:32.2]} 32. Rd3 {[%clk 0:01:17.6]} 32... Rxf4 {[%clk 0:02:32.1]} 33.
f3 {[%clk 0:01:18.1]} 33... Rxh4 {[%clk 0:02:32]} 34. a4 {[%clk 0:01:15.4]}
34... a5 {[%clk 0:02:28.4]} 0-1

[Event "*** Titled Tuesday Blitz"]
[Site "Chess.com"]
[Date "2020.05.26"]
[Round "6"]
[White "Quattroporte300"]
[Black "kingmonkey2006"]
[Result "0-1"]
[WhiteElo "2312"]
[BlackElo "2564"]
[TimeControl "180+1"]
[EndTime "11:04:31 PDT"]
[Termination "kingmonkey2006 won by resignation"]

1. e4 {[%clk 0:03:00.9]} 1... d6 {[%clk 0:03:00.7]} 2. d4 {[%clk 0:03:00.5]}
2... Nd7 {[%clk 0:03:01.1]} 3. Nc3 {[%clk 0:02:59.3]} 3... c5 {[%clk 0:03:02]}
4. Nf3 {[%clk 0:02:56.5]} 4... g6 {[%clk 0:02:59.5]} 5. dxc5 {[%clk 0:02:34.9]}
5... Nxc5 {[%clk 0:02:58.9]} 6. Qd4 {[%clk 0:02:22.7]} 6... Nf6 {[%clk
0:02:25.5]} 7. e5 {[%clk 0:02:03.4]} 7... Ne6 {[%clk 0:02:24.8]} 8. Qa4+ {[%clk
0:01:51.6]} 8... Bd7 {[%clk 0:02:24.5]} 9. Bb5 {[%clk 0:01:51.9]} 9... Nc5
{[%clk 0:02:15.7]} 10. Bxd7+ {[%clk 0:01:48.3]} 10... Nfxd7 {[%clk 0:02:16.6]}
11. Qd4 {[%clk 0:01:43]} 11... Bg7 {[%clk 0:02:15.7]} 12. Bf4 {[%clk 0:01:36.6]}
12... Ne6 {[%clk 0:02:15.6]} 13. Qe3 {[%clk 0:01:34.6]} 13... Nxf4 {[%clk
0:02:15.9]} 14. Qxf4 {[%clk 0:01:35]} 14... Nxe5 {[%clk 0:02:16.1]} 15. O-O-O
{[%clk 0:01:29.6]} 15... O-O {[%clk 0:02:11]} 16. h4 {[%clk 0:01:26.1]} 16...
Rc8 {[%clk 0:02:02.4]} 17. h5 {[%clk 0:01:24.2]} 17... Nxf3 {[%clk 0:02:01.8]}
18. hxg6 {[%clk 0:00:53.1]} 18... fxg6 {[%clk 0:02:00.1]} 0-1

[Event "*** Titled Tuesday Blitz"]
[Site "Chess.com"]
[Date "2020.05.26"]
[Round "6"]
[White "HarutyunianTigranK"]
[Black "RobertPrieb2007"]
[Result "1-0"]
[WhiteElo "2701"]
[BlackElo "2456"]
[TimeControl "180+1"]
[EndTime "11:04:47 PDT"]
[Termination "HarutyunianTigranK won by resignation"]

1. c4 {[%clk 0:03:00.8]} 1... Nf6 {[%clk 0:02:46.8]} 2. Nc3 {[%clk 0:03:00.6]}
2... g6 {[%clk 0:02:46]} 3. e4 {[%clk 0:03:00.3]} 3... d6 {[%clk 0:02:44]} 4. g3
{[%clk 0:03:00.4]} 4... Bg7 {[%clk 0:02:41]} 5. Bg2 {[%clk 0:03:01.1]} 5... O-O
{[%clk 0:02:38.6]} 6. Nge2 {[%clk 0:03:01.7]} 6... c5 {[%clk 0:02:34.7]} 7. O-O
{[%clk 0:03:02.2]} 7... Nc6 {[%clk 0:02:31.4]} 8. d3 {[%clk 0:03:02.6]} 8... Bd7
{[%clk 0:02:26.7]} 9. h3 {[%clk 0:03:00.4]} 9... Rc8 {[%clk 0:02:22.8]} 10. Kh2
{[%clk 0:02:59.4]} 10... Nd4 {[%clk 0:02:19.2]} 11. Nxd4 {[%clk 0:02:58.9]}
11... cxd4 {[%clk 0:02:20.1]} 12. Ne2 {[%clk 0:02:59.4]} 12... e5 {[%clk
0:02:16.8]} 13. f4 {[%clk 0:02:59.2]} 13... Qa5 {[%clk 0:02:11.9]} 14. Bd2
{[%clk 0:02:57.3]} 14... Qc5 {[%clk 0:02:11.7]} 15. f5 {[%clk 0:02:54.6]} 15...
gxf5 {[%clk 0:02:04.3]} 16. exf5 {[%clk 0:02:54.4]} 16... b5 {[%clk 0:02:04.2]}
17. b3 {[%clk 0:02:51.8]} 17... bxc4 {[%clk 0:01:59.7]} 18. bxc4 {[%clk
0:02:51.6]} 18... d5 {[%clk 0:01:56.9]} 19. g4 {[%clk 0:02:48.5]} 19... dxc4
{[%clk 0:01:53.7]} 20. g5 {[%clk 0:02:48.7]} 20... cxd3 {[%clk 0:01:49.6]} 21.
Ng3 {[%clk 0:02:47.7]} 21... Nd5 {[%clk 0:01:46.6]} 22. f6 {[%clk 0:02:47.6]}
22... Bh8 {[%clk 0:01:44]} 23. Be4 {[%clk 0:02:47.3]} 23... Nf4 {[%clk
0:01:36.5]} 24. Bxf4 {[%clk 0:02:32.5]} 24... exf4 {[%clk 0:01:37.4]} 25. Qh5
{[%clk 0:02:32.5]} 25... fxg3+ {[%clk 0:01:31.7]} 26. Kg1 {[%clk 0:02:32.6]}
26... Bf5 {[%clk 0:01:27.2]} 27. Bxf5 {[%clk 0:02:29.2]} 27... Qxf5 {[%clk
0:01:19.4]} 28. Rxf5 {[%clk 0:02:30.1]} 28... Rfe8 {[%clk 0:01:16.7]} 29. Rd1
{[%clk 0:02:25.5]} 29... Rc2 {[%clk 0:01:12.3]} 30. Rff1 {[%clk 0:02:22.3]}
30... Ree2 {[%clk 0:01:04.9]} 31. Qf3 {[%clk 0:02:22.2]} 31... Re8 {[%clk
0:00:59.2]} 32. Qxd3 {[%clk 0:02:21.1]} 32... Rxa2 {[%clk 0:00:55.2]} 33. Qxg3
{[%clk 0:02:19.7]} 1-0

[Event "*** Titled Tuesday Blitz"]
[Site "Chess.com"]
[Date "2020.05.26"]
[Round "6"]
[White "smshk35"]
[Black "wild_cat99"]
[Result "0-1"]
[WhiteElo "2315"]
[BlackElo "2562"]
[TimeControl "180+1"]
[EndTime "11:05:03 PDT"]
[Termination "wild_cat99 won by resignation"]

1. e4 {[%clk 0:03:00.9]} 1... c5 {[%clk 0:02:59.5]} 2. Nf3 {[%clk 0:03:00.8]}
2... d6 {[%clk 0:02:59.5]} 3. c3 {[%clk 0:03:00.4]} 3... Nf6 {[%clk 0:02:59.2]}
4. g3 {[%clk 0:02:59.4]} 4... Nc6 {[%clk 0:02:53.3]} 5. d3 {[%clk 0:02:50.2]}
5... g6 {[%clk 0:02:44.8]} 6. Bg2 {[%clk 0:02:50]} 6... Bg7 {[%clk 0:02:44.9]}
7. O-O {[%clk 0:02:50.3]} 7... O-O {[%clk 0:02:44.3]} 8. Re1 {[%clk 0:02:50.1]}
8... Qc7 {[%clk 0:02:31.3]} 9. d4 {[%clk 0:02:48.7]} 9... cxd4 {[%clk
0:02:30.3]} 10. cxd4 {[%clk 0:02:49.6]} 10... b6 {[%clk 0:02:18.3]} 11. d5
{[%clk 0:02:49.3]} 11... Na5 {[%clk 0:02:14.3]} 12. Nc3 {[%clk 0:02:47.2]} 12...
Ba6 {[%clk 0:02:13.1]} 13. Nd4 {[%clk 0:02:43.4]} 13... Nd7 {[%clk 0:01:52.6]}
14. Bf4 {[%clk 0:02:29.1]} 14... Nc4 {[%clk 0:01:48.2]} 15. b3 {[%clk
0:02:15.6]} 15... Qc5 {[%clk 0:01:41.9]} 16. Nc6 {[%clk 0:01:59.6]} 16... Bxc3
{[%clk 0:01:39.8]} 17. Nxe7+ {[%clk 0:02:00]} 17... Kh8 {[%clk 0:01:39.6]} 18.
bxc4 {[%clk 0:02:00.2]} 18... Bxe1 {[%clk 0:01:38.5]} 19. Qxe1 {[%clk
0:01:58.7]} 19... Bxc4 {[%clk 0:01:31]} 20. Rc1 {[%clk 0:01:47.8]} 20... Ne5
{[%clk 0:01:28.8]} 21. Bxe5+ {[%clk 0:01:36.8]} 21... dxe5 {[%clk 0:01:29.7]}
22. Qc3 {[%clk 0:01:36.7]} 22... Qxe7 {[%clk 0:01:27.9]} 23. Qxc4 {[%clk
0:01:37]} 23... Rac8 {[%clk 0:01:25.6]} 24. Qxc8 {[%clk 0:01:37]} 24... Rxc8
{[%clk 0:01:25.9]} 25. Rxc8+ {[%clk 0:01:37.9]} 25... Kg7 {[%clk 0:01:26.6]} 26.
Bh3 {[%clk 0:01:35]} 26... a5 {[%clk 0:01:22.7]} 27. Rc6 {[%clk 0:01:34.4]}
27... Qb4 {[%clk 0:01:18.6]} 28. f3 {[%clk 0:01:17.9]} 28... Qd4+ {[%clk
0:01:18.3]} 0-1

[Event "*** Titled Tuesday Blitz"]
[Site "Chess.com"]
[Date "2020.05.26"]
[Round "6"]
[White "Susal_De_Silva"]
[Black "IMinTheWings"]
[Result "0-1"]
[WhiteElo "2363"]
[BlackElo "2132"]
[TimeControl "180+1"]
[EndTime "11:05:09 PDT"]
[Termination "IMinTheWings won by resignation"]

1. e4 {[%clk 0:03:00.9]} 1... e6 {[%clk 0:02:59.7]} 2. d4 {[%clk 0:03:00.5]}
2... d5 {[%clk 0:03:00.6]} 3. Nc3 {[%clk 0:03:00.9]} 3... Nf6 {[%clk 0:03:00.9]}
4. e5 {[%clk 0:03:01.4]} 4... Nfd7 {[%clk 0:03:01.1]} 5. f4 {[%clk 0:03:02]}
5... c5 {[%clk 0:03:01.4]} 6. Nf3 {[%clk 0:03:02.3]} 6... Nc6 {[%clk 0:03:01.9]}
7. Be3 {[%clk 0:03:02.4]} 7... a6 {[%clk 0:03:02.4]} 8. Qd2 {[%clk 0:03:01.6]}
8... b5 {[%clk 0:03:02.6]} 9. dxc5 {[%clk 0:03:02.1]} 9... Bxc5 {[%clk
0:03:02.3]} 10. Bxc5 {[%clk 0:03:00.1]} 10... Nxc5 {[%clk 0:03:02.1]} 11. Bd3
{[%clk 0:03:00.6]} 11... Qb6 {[%clk 0:02:59.6]} 12. O-O-O {[%clk 0:02:58]} 12...
b4 {[%clk 0:02:53.3]} 13. Ne2 {[%clk 0:02:56.6]} 13... a5 {[%clk 0:02:49.6]} 14.
f5 {[%clk 0:02:55.8]} 14... exf5 {[%clk 0:02:36.5]} 15. Ng3 {[%clk 0:02:54.7]}
15... g6 {[%clk 0:02:33.9]} 16. Kb1 {[%clk 0:02:52.1]} 16... Be6 {[%clk
0:02:32.6]} 17. Ng5 {[%clk 0:02:51.1]} 17... O-O-O {[%clk 0:02:29.9]} 18. Rhe1
{[%clk 0:02:47.1]} 18... h6 {[%clk 0:02:23.9]} 19. Nf3 {[%clk 0:02:46.9]} 19...
Ne4 {[%clk 0:02:09.8]} 20. Qe2 {[%clk 0:02:35.2]} 20... Kc7 {[%clk 0:01:56.6]}
21. Ka1 {[%clk 0:02:32.5]} 21... a4 {[%clk 0:01:50.1]} 22. Rc1 {[%clk
0:02:31.1]} 22... Ra8 {[%clk 0:01:42.4]} 23. Bb5 {[%clk 0:02:21]} 23... a3
{[%clk 0:01:17]} 24. Nxe4 {[%clk 0:02:19.9]} 24... axb2+ {[%clk 0:01:14.8]} 25.
Kxb2 {[%clk 0:02:19.3]} 25... dxe4 {[%clk 0:01:10.6]} 26. Nd2 {[%clk 0:02:15.3]}
26... Qd4+ {[%clk 0:00:54.4]} 27. c3 {[%clk 0:02:13.4]} 27... Rxa2+ {[%clk
0:00:54.2]} 28. Kb1 {[%clk 0:02:13.3]} 28... bxc3 {[%clk 0:00:54.4]} 29. Bxc6
{[%clk 0:02:10.4]} 29... Qb4+ {[%clk 0:00:32.1]} 0-1

[Event "*** Titled Tuesday Blitz"]
[Site "Chess.com"]
[Date "2020.05.26"]
[Round "6"]
[White "miruna_daria28"]
[Black "Ariadna_Atreides"]
[Result "1-0"]
[WhiteElo "2267"]
[BlackElo "2068"]
[TimeControl "180+1"]
[EndTime "11:05:28 PDT"]
[Termination "miruna_daria28 won by checkmate"]

1. e4 {[%clk 0:03:00]} 1... c5 {[%clk 0:02:59.3]} 2. Nf3 {[%clk 0:02:59.1]} 2...
d6 {[%clk 0:02:59.6]} 3. d4 {[%clk 0:02:48.6]} 3... cxd4 {[%clk 0:02:59.5]} 4.
Nxd4 {[%clk 0:02:48.4]} 4... Nf6 {[%clk 0:03:00]} 5. Nc3 {[%clk 0:02:47.6]} 5...
Nc6 {[%clk 0:03:00.4]} 6. Bg5 {[%clk 0:02:46.8]} 6... e6 {[%clk 0:02:59.7]} 7.
f3 {[%clk 0:02:46.4]} 7... a6 {[%clk 0:02:53.5]} 8. Qd2 {[%clk 0:02:46.1]} 8...
Bd7 {[%clk 0:02:52.4]} 9. O-O-O {[%clk 0:02:44.9]} 9... Be7 {[%clk 0:02:50]} 10.
h4 {[%clk 0:02:40.8]} 10... Qc7 {[%clk 0:02:44]} 11. g4 {[%clk 0:02:38]} 11...
b5 {[%clk 0:02:42.7]} 12. Kb1 {[%clk 0:02:31.9]} 12... Na5 {[%clk 0:02:33.8]}
13. Be3 {[%clk 0:02:27.9]} 13... Nc4 {[%clk 0:02:31.5]} 14. Bxc4 {[%clk
0:02:26.3]} 14... Qxc4 {[%clk 0:02:29.2]} 15. h5 {[%clk 0:02:12.6]} 15... h6
{[%clk 0:02:27]} 16. g5 {[%clk 0:01:52.4]} 16... hxg5 {[%clk 0:02:23]} 17. Bxg5
{[%clk 0:01:52]} 17... b4 {[%clk 0:01:51.2]} 18. Nce2 {[%clk 0:01:46.6]} 18...
Bb5 {[%clk 0:01:51]} 19. h6 {[%clk 0:01:29.9]} 19... gxh6 {[%clk 0:01:47.9]} 20.
Rxh6 {[%clk 0:01:20.8]} 20... Rxh6 {[%clk 0:01:45.2]} 21. Bxh6 {[%clk
0:01:17.5]} 21... e5 {[%clk 0:01:30]} 22. Nf5 {[%clk 0:01:15.2]} 22... Qxe2
{[%clk 0:01:27.2]} 23. Nxd6+ {[%clk 0:01:08.6]} 23... Bxd6 {[%clk 0:01:19.1]}
24. Qxd6 {[%clk 0:01:07.9]} 24... Rc8 {[%clk 0:00:56.9]} 25. Qf8# {[%clk
0:01:05.6]} 1-0

[Event "*** Titled Tuesday Blitz"]
[Site "Chess.com"]
[Date "2020.05.26"]
[Round "6"]
[White "PetrolulSah"]
[Black "MidnightFox"]
[Result "0-1"]
[WhiteElo "2207"]
[BlackElo "2405"]
[TimeControl "180+1"]
[EndTime "11:05:30 PDT"]
[Termination "MidnightFox won by resignation"]

1. d4 {[%clk 0:03:00.9]} 1... Nf6 {[%clk 0:02:59.5]} 2. c4 {[%clk 0:02:59.6]}
2... g6 {[%clk 0:02:59.9]} 3. Nc3 {[%clk 0:02:56.9]} 3... d5 {[%clk 0:03:00]} 4.
cxd5 {[%clk 0:02:56.3]} 4... Nxd5 {[%clk 0:03:00.9]} 5. e4 {[%clk 0:02:56.4]}
5... Nxc3 {[%clk 0:03:00.6]} 6. bxc3 {[%clk 0:02:57.3]} 6... Bg7 {[%clk
0:03:00.9]} 7. Bc4 {[%clk 0:02:57.4]} 7... c5 {[%clk 0:03:01]} 8. Ne2 {[%clk
0:02:57.2]} 8... O-O {[%clk 0:03:01.2]} 9. O-O {[%clk 0:02:57.3]} 9... Nc6
{[%clk 0:03:01.6]} 10. Be3 {[%clk 0:02:57]} 10... Bg4 {[%clk 0:03:02.1]} 11. f3
{[%clk 0:02:55.3]} 11... Bd7 {[%clk 0:03:02.6]} 12. dxc5 {[%clk 0:02:54]} 12...
Qc7 {[%clk 0:02:56.7]} 13. Bd5 {[%clk 0:02:52.1]} 13... Rfd8 {[%clk 0:02:51.1]}
14. Rb1 {[%clk 0:02:49.4]} 14... e6 {[%clk 0:02:46.6]} 15. Bf4 {[%clk
0:02:48.9]} 15... Qa5 {[%clk 0:02:39.2]} 16. Bb3 {[%clk 0:02:27.2]} 16... Qxc5+
{[%clk 0:02:36.8]} 17. Kh1 {[%clk 0:02:26.4]} 17... Ne5 {[%clk 0:02:20.2]} 18.
Qd4 {[%clk 0:02:18.4]} 18... Qa5 {[%clk 0:02:09.6]} 19. Qb4 {[%clk 0:01:36.1]}
19... Qa6 {[%clk 0:01:55.5]} 20. Nd4 {[%clk 0:01:22.8]} 20... Nd3 {[%clk
0:01:37.2]} 21. Bc4 {[%clk 0:01:18.8]} 21... Nxb4 {[%clk 0:01:29.4]} 22. Bxa6
{[%clk 0:01:18.7]} 22... Nxa6 {[%clk 0:01:30.3]} 23. Rxb7 {[%clk 0:01:18.7]}
23... Ba4 {[%clk 0:01:16.9]} 24. e5 {[%clk 0:01:15.1]} 24... Nc5 {[%clk
0:01:09.9]} 25. Rc7 {[%clk 0:01:11.2]} 25... Rdc8 {[%clk 0:01:07.4]} 26. Rxc8+
{[%clk 0:01:08]} 26... Rxc8 {[%clk 0:01:08.3]} 27. h4 {[%clk 0:01:07.6]} 27...
Nd3 {[%clk 0:01:07]} 28. Rb1 {[%clk 0:01:07.1]} 28... Nxf4 {[%clk 0:01:06]} 0-1

[Event "*** Titled Tuesday Blitz"]
[Site "Chess.com"]
[Date "2020.05.26"]
[Round "6"]
[White "White_Ghost"]
[Black "mattcolins2025"]
[Result "1-0"]
[WhiteElo "2477"]
[BlackElo "2288"]
[TimeControl "180+1"]
[EndTime "11:05:32 PDT"]
[Termination "White_Ghost won by resignation"]

1. d4 {[%clk 0:03:00.9]} 1... Nf6 {[%clk 0:02:59.4]} 2. c4 {[%clk 0:03:00.5]}
2... g6 {[%clk 0:02:59.9]} 3. g3 {[%clk 0:03:00.9]} 3... Bg7 {[%clk 0:03:00.4]}
4. Bg2 {[%clk 0:03:01.5]} 4... O-O {[%clk 0:03:00.7]} 5. Nc3 {[%clk 0:03:02]}
5... d6 {[%clk 0:03:00.9]} 6. Nf3 {[%clk 0:03:02.6]} 6... c6 {[%clk 0:03:01.1]}
7. O-O {[%clk 0:03:03.2]} 7... Qa5 {[%clk 0:03:01.3]} 8. e4 {[%clk 0:03:03.6]}
8... Bg4 {[%clk 0:03:01.6]} 9. h3 {[%clk 0:03:01.6]} 9... Bxf3 {[%clk
0:03:01.8]} 10. Bxf3 {[%clk 0:03:02.5]} 10... Nbd7 {[%clk 0:03:01.8]} 11. Bg2
{[%clk 0:03:02.3]} 11... e5 {[%clk 0:03:02]} 12. d5 {[%clk 0:03:02.4]} 12...
cxd5 {[%clk 0:03:02.2]} 13. cxd5 {[%clk 0:03:02.2]} 13... Rfc8 {[%clk
0:03:02.4]} 14. Bd2 {[%clk 0:03:02.6]} 14... a6 {[%clk 0:03:02.6]} 15. Rc1
{[%clk 0:03:01.4]} 15... Qd8 {[%clk 0:03:01.7]} 16. Qe2 {[%clk 0:03:00.1]} 16...
b5 {[%clk 0:03:01.8]} 17. Be3 {[%clk 0:02:55.8]} 17... Nb6 {[%clk 0:03:00.5]}
18. b3 {[%clk 0:02:51.1]} 18... Nfd7 {[%clk 0:02:54.4]} 19. Rc2 {[%clk
0:02:48.4]} 19... Rc7 {[%clk 0:02:53.5]} 20. Rfc1 {[%clk 0:02:48]} 20... Rac8
{[%clk 0:02:53.6]} 21. h4 {[%clk 0:02:42.1]} 21... Nc5 {[%clk 0:02:36.3]} 22.
Bh3 {[%clk 0:02:38.1]} 22... Rb8 {[%clk 0:02:34.7]} 23. h5 {[%clk 0:02:26.4]}
23... Ra7 {[%clk 0:02:18.3]} 24. Nb1 {[%clk 0:02:07.3]} 24... Nxe4 {[%clk
0:02:11.5]} 25. Bxb6 {[%clk 0:02:05.4]} 25... Nxg3 {[%clk 0:02:08.3]} 26. Bxd8
{[%clk 0:01:51.7]} 26... Nxe2+ {[%clk 0:02:08]} 27. Rxe2 {[%clk 0:01:52.6]}
27... Rxd8 {[%clk 0:02:07.5]} 28. Rec2 {[%clk 0:01:52.7]} 28... Raa8 {[%clk
0:02:06.2]} 29. Rc8 {[%clk 0:01:49]} 29... Bh6 {[%clk 0:02:05.4]} 30. Rxa8
{[%clk 0:01:46.7]} 30... Rxa8 {[%clk 0:02:04.9]} 31. Rc8+ {[%clk 0:01:47.6]}
31... Rxc8 {[%clk 0:02:05.2]} 32. Bxc8 {[%clk 0:01:48.3]} 32... a5 {[%clk
0:02:05.8]} 33. Nc3 {[%clk 0:01:42.2]} 33... b4 {[%clk 0:02:03.4]} 34. Ne4
{[%clk 0:01:41.9]} 34... Bf8 {[%clk 0:02:02.6]} 35. Nd2 {[%clk 0:01:34.7]} 35...
f5 {[%clk 0:01:53]} 36. Nc4 {[%clk 0:01:34.4]} 36... Kf7 {[%clk 0:01:52.9]} 37.
Nxa5 {[%clk 0:01:32]} 37... e4 {[%clk 0:01:50.9]} 38. Nc6 {[%clk 0:01:26.7]}
38... Kf6 {[%clk 0:01:46.6]} 39. Nxb4 {[%clk 0:01:27.6]} 39... Ke5 {[%clk
0:01:47]} 40. a4 {[%clk 0:01:27.5]} 40... Kd4 {[%clk 0:01:47.5]} 41. a5 {[%clk
0:01:27.7]} 41... Kc5 {[%clk 0:01:48]} 42. Nc6 {[%clk 0:01:18.6]} 42... e3
{[%clk 0:01:42.9]} 43. fxe3 {[%clk 0:01:17.7]} 43... Bh6 {[%clk 0:01:42]} 44.
Kf2 {[%clk 0:01:16.3]} 44... f4 {[%clk 0:01:41.5]} 45. exf4 {[%clk 0:01:15.8]}
45... Bxf4 {[%clk 0:01:41.8]} 46. b4+ {[%clk 0:01:14.2]} 46... Kxd5 {[%clk
0:01:41.7]} 47. a6 {[%clk 0:01:13.7]} 47... Kxc6 {[%clk 0:01:36.8]} 48. a7
{[%clk 0:01:13.7]} 1-0

[Event "*** Titled Tuesday Blitz"]
[Site "Chess.com"]
[Date "2020.05.26"]
[Round "6"]
[White "Joshukid"]
[Black "XiaoKangZhong"]
[Result "1-0"]
[WhiteElo "2628"]
[BlackElo "2432"]
[TimeControl "180+1"]
[EndTime "11:05:38 PDT"]
[Termination "Joshukid won by resignation"]

1. d4 {[%clk 0:03:00.9]} 1... Nf6 {[%clk 0:02:58.1]} 2. Nc3 {[%clk 0:02:54.8]}
2... d5 {[%clk 0:02:56.5]} 3. Bf4 {[%clk 0:02:52.8]} 3... Bf5 {[%clk 0:02:52.3]}
4. e3 {[%clk 0:02:50.7]} 4... e6 {[%clk 0:02:49.4]} 5. f3 {[%clk 0:02:50.7]}
5... Bd6 {[%clk 0:02:46.9]} 6. Nge2 {[%clk 0:02:39.6]} 6... O-O {[%clk
0:02:44.2]} 7. g4 {[%clk 0:02:39.5]} 7... Bg6 {[%clk 0:02:36.2]} 8. h4 {[%clk
0:02:38.5]} 8... h5 {[%clk 0:02:36.5]} 9. g5 {[%clk 0:02:38.6]} 9... Nfd7 {[%clk
0:02:34.5]} 10. Bxd6 {[%clk 0:02:38.1]} 10... cxd6 {[%clk 0:02:34.3]} 11. Nf4
{[%clk 0:02:39]} 11... Nc6 {[%clk 0:02:32.5]} 12. Bh3 {[%clk 0:02:33.1]} 12...
Re8 {[%clk 0:02:17.4]} 13. Nxg6 {[%clk 0:02:24.4]} 13... fxg6 {[%clk 0:02:18.3]}
14. Qd3 {[%clk 0:02:24.4]} 14... Nf8 {[%clk 0:01:59.7]} 15. a3 {[%clk
0:02:24.4]} 15... e5 {[%clk 0:01:58.1]} 16. O-O-O {[%clk 0:02:17.3]} 16... e4
{[%clk 0:01:35.4]} 17. Qb5 {[%clk 0:02:00.2]} 17... exf3 {[%clk 0:01:30.7]} 18.
Qxd5+ {[%clk 0:01:59.9]} 18... Kh7 {[%clk 0:01:30.3]} 19. Qxf3 {[%clk
0:01:59.9]} 19... Qc7 {[%clk 0:01:23]} 20. Nd5 {[%clk 0:01:57.1]} 20... Qa5
{[%clk 0:01:19.6]} 21. Qf7 {[%clk 0:01:51.7]} 21... Kh8 {[%clk 0:01:09]} 22. Nf6
{[%clk 0:01:39.6]} 22... gxf6 {[%clk 0:01:07]} 23. gxf6 {[%clk 0:01:40.5]} 23...
Ne6 {[%clk 0:01:05.5]} 24. Bxe6 {[%clk 0:01:39.9]} 24... Rg8 {[%clk 0:01:06]}
25. Qxb7 {[%clk 0:01:32.8]} 25... Nd8 {[%clk 0:00:59.4]} 26. Qxa8 {[%clk
0:01:32.6]} 26... Nxe6 {[%clk 0:00:59.1]} 27. Qe4 {[%clk 0:01:31.7]} 27... Nd8
{[%clk 0:00:57.2]} 28. Rhg1 {[%clk 0:01:27.9]} 28... d5 {[%clk 0:00:49.6]} 29.
Qe5 {[%clk 0:01:24.3]} 29... Nf7 {[%clk 0:00:48.2]} 30. Qe7 {[%clk 0:01:24.4]}
1-0

[Event "*** Titled Tuesday Blitz"]
[Site "Chess.com"]
[Date "2020.05.26"]
[Round "6"]
[White "Giraffe_Chess"]
[Black "DenLaz"]
[Result "1/2-1/2"]
[WhiteElo "2420"]
[BlackElo "2642"]
[TimeControl "180+1"]
[EndTime "11:05:38 PDT"]
[Termination "Game drawn by repetition"]

1. d4 {[%clk 0:03:00.9]} 1... d5 {[%clk 0:02:59.9]} 2. c4 {[%clk 0:03:00.2]}
2... c6 {[%clk 0:02:59.4]} 3. Nf3 {[%clk 0:03:00]} 3... Nf6 {[%clk 0:02:59.1]}
4. Qc2 {[%clk 0:03:00]} 4... g6 {[%clk 0:02:58.3]} 5. Bf4 {[%clk 0:02:59.6]}
5... Bg7 {[%clk 0:02:56.9]} 6. e3 {[%clk 0:02:59.7]} 6... O-O {[%clk 0:02:57.3]}
7. Nc3 {[%clk 0:02:55.3]} 7... e6 {[%clk 0:02:55.6]} 8. h3 {[%clk 0:02:52.1]}
8... b6 {[%clk 0:02:55.7]} 9. Be2 {[%clk 0:02:51.4]} 9... Bb7 {[%clk 0:02:56.2]}
10. O-O {[%clk 0:02:51]} 10... Nbd7 {[%clk 0:02:56.8]} 11. Rfd1 {[%clk
0:02:49.1]} 11... Re8 {[%clk 0:02:54.5]} 12. Rac1 {[%clk 0:02:48.1]} 12... a6
{[%clk 0:02:52.5]} 13. a4 {[%clk 0:02:42.5]} 13... c5 {[%clk 0:02:50]} 14. dxc5
{[%clk 0:02:38.8]} 14... bxc5 {[%clk 0:02:50.9]} 15. Qb3 {[%clk 0:02:32.8]}
15... Bc6 {[%clk 0:02:46.8]} 16. Ne5 {[%clk 0:02:22.1]} 16... Nxe5 {[%clk
0:02:44.1]} 17. Bxe5 {[%clk 0:02:23]} 17... dxc4 {[%clk 0:02:23]} 18. Qxc4
{[%clk 0:02:08.8]} 18... Qb6 {[%clk 0:02:21.6]} 19. Rd6 {[%clk 0:01:57.8]} 19...
Qb7 {[%clk 0:02:10.9]} 20. Qxc5 {[%clk 0:01:32.4]} 20... Rac8 {[%clk 0:01:58.5]}
21. Qa5 {[%clk 0:01:25.1]} 21... Bxg2 {[%clk 0:01:50.6]} 22. Rb6 {[%clk
0:01:22.9]} 22... Qa8 {[%clk 0:01:46.6]} 23. Rxa6 {[%clk 0:01:17.1]} 23... Qb7
{[%clk 0:01:46.2]} 24. Rb6 {[%clk 0:00:54.3]} 24... Qa8 {[%clk 0:01:45.3]} 25.
Ra6 {[%clk 0:00:54.3]} 25... Qb7 {[%clk 0:01:43.5]} 26. Ra7 {[%clk 0:00:47.1]}
26... Qc6 {[%clk 0:01:36.2]} 27. Ra6 {[%clk 0:00:27.8]} 27... Qb7 {[%clk
0:01:34.6]} 1/2-1/2